bitfinex/quotes_SOLUSD_20220130
["timestamp","ask_amount","ask_price","bid_price","bid_amount"]
[1643583798403,0.2,93.199,93.102,0.25]
[1643583799205,0.2,93.199,93.103,2.48186731]
[1643583799405,0.2,93.199,93.104,0.25]
[1643583800010,0.2,93.199,93.111,107.7]
[1643583800209,0.2,93.199,93.11,16.112]
[1643583800409,0.2,93.199,93.111,0.25]
[1643583801612,0.2,93.199,93.111,107.95]
[1643583802212,0.2,93.199,93.12,16.11]
[1643583802411,0.2,93.199,93.121,0.25]
[1643583803012,0.2,93.199,93.12,16.11]
[1643583803211,0.2,93.199,93.121,0.25]
[1643583804111,0.2,93.199,93.121,2.73186731]
[1643583804411,0.2,93.199,93.13,16.108]
[1643583804834,0.2,93.199,93.131,107.95]
[1643583805035,0.2,93.199,93.131,0.25]
[1643583805538,0.2,93.199,93.14,16.106]
[1643583805736,0.2,93.199,93.14,26.206]
[1643583805937,0.2,93.229,93.141,2.73186731]
[1643583806337,1.48792244,93.242,93.142,2.48186731]
[1643583806537,1.48792244,93.245,93.152,6.0]
[1643583806741,0.2,93.249,93.153,107.7]
[1643583806939,2.97792125,93.28,93.153,110.43186731]
[1643583806940,1.48792244,93.261,93.153,110.43186731]
[1643583807139,1.48792244,93.261,93.17,53.653]
[1643583807338,1.48792244,93.276,93.176,0.30064919]
[1643583807538,1.48792244,93.292,93.203,0.32337565]
[1643583807741,1.48792244,93.307,93.22,16.089]
[1643583807938,15.49,93.33,93.203,13.96337565]
[1643583807939,1.48792244,93.316,93.226,0.30594462]
[1643583808140,1.48792244,93.325,93.231,107.7]
[1643583808339,1.48792244,93.325,93.256,0.3135385]
[1643583808538,15.49,93.37,93.256,0.3135385]
[1643583808539,1.48792244,93.326,93.256,8.9735385]
[1643583808741,1.48792244,93.334,93.257,110.18186731]
[1643583809039,1.48792244,93.34,93.267,6.0]
[1643583809238,1.48792244,93.361,93.285,0.31749066]
[1643583809439,1.48792244,93.38,93.286,107.7]
[1643583809743,1.48792244,93.383,93.285,8.77]
[1643583809938,1.48792244,93.383,93.287,0.25]
[1643583810138,1.48792244,93.377,93.29,16.078]
[1643583810339,1.48792244,93.374,93.291,107.95]
[1643583810540,1.48792244,93.378,93.301,6.0]
[1643583810838,1.48792244,93.399,93.302,0.25]
[1643583811239,0.3,93.409,93.302,0.25]
[1643583811449,0.3,93.409,93.302,6.25]
[1643583812039,0.3,93.409,93.303,2.48186731]
[1643583812239,1.48792244,93.401,93.302,0.25]
[1643583812539,1.48792244,93.401,93.196,1.46230861]
[1643583812540,1.48792244,93.402,93.28,6.0]
[1643583812740,2.95669142,93.363,93.197,1.46230861]
[1643583812942,1.48792244,93.388,93.26,15.49]
[1643583813243,0.3,93.389,93.27,6.0]
[1643583813441,0.3,93.389,93.271,107.7]
[1643583813641,1.48792244,93.41,93.271,132.26792415]
[1643583813841,1.48792244,93.41,93.28,6.0]
[1643583814146,0.3,93.419,93.292,0.30772396]
[1643583814442,0.3,93.429,93.3,15.49]
[1643583814641,0.3,93.429,93.301,113.7]
[1643583814842,1.48792244,93.438,93.31,6.0]
[1643583815042,1.48792244,93.444,93.311,6.0]
[1643583815242,15.49,93.44,93.32,16.072]
[1643583815544,0.3,93.439,93.32,22.072]
[1643583815743,0.00725838,93.345,93.321,0.25]
[1643583815942,0.00725838,93.345,93.321,2.73183143]
[1643583816142,0.41451676,93.345,93.331,6.0]
[1643583816344,0.41451676,93.345,93.332,0.25]
[1643583816645,0.3,93.449,93.333,6.0]
[1643583816843,0.3,93.449,93.334,107.95]
[1643583817044,0.3,93.449,93.344,6.0]
[1643583817250,14.79,93.45,93.345,107.7]
[1643583817444,14.79,93.45,93.35,16.068]
[1643583817844,17.38134447,93.47,93.351,0.25]
[1643583818349,17.38134447,93.47,93.352,2.48183143]
[1643583818745,17.38134447,93.47,93.353,0.25]
[1643583818946,16.38134447,93.47,93.353,0.25]
[1643583819148,16.38134447,93.47,93.36,16.066]
[1643583819349,16.38134447,93.47,93.32,87.62092415]
[1643583819645,2.95669142,93.469,93.32,15.49]
[1643583819846,120.07695225,93.469,93.32,15.49]
[1643583820046,120.07695225,93.469,93.311,2.48183143]
[1643583820249,120.07695225,93.469,93.321,6.0]
[1643583820648,2.95669142,93.468,93.321,6.0]
[1643583821047,16.38134447,93.47,93.33,16.072]
[1643583821452,16.38134447,93.47,93.331,2.73183143]
[1643583821949,2.95669142,93.469,93.316,6.0]
[1643583822148,2.95669142,93.469,93.324,6.0]
[1643583822349,12.78621215,93.469,93.324,6.0]
[1643583822551,107.7,93.451,93.295,6.0]
[1643583822750,209.15,93.44,93.295,6.0]
[1643583822949,15.49,93.43,93.295,6.0]
[1643583823149,1.14,93.428,93.295,6.0]
[1643583823349,1.14,93.428,93.284,18.56792415]
[1643583823549,2.95669142,93.427,93.294,6.0]
[1643583823750,193.66,93.42,93.291,6.0]
[1643583823950,15.49,93.41,93.275,6.0]
[1643583824156,0.2,93.409,93.275,6.0]
[1643583824550,0.2,93.409,93.276,2.72723833]
[1643583824755,0.2,93.409,93.276,2.47723833]
[1643583825051,0.2,93.409,93.286,6.0]
[1643583825253,0.2,93.409,93.286,113.7]
[1643583825458,0.2,93.409,93.29,6.0]
[1643583825650,0.2,93.409,93.297,6.0]
[1643583826056,0.2,93.409,93.298,0.25]
[1643583826259,0.2,93.409,93.298,2.72707845]
[1643583826455,0.2,93.409,93.299,20.90055815]
[1643583826654,15.49,93.43,93.301,107.7]
[1643583826852,0.2,93.429,93.302,0.25]
[1643583827052,0.2,93.429,93.311,6.0]
[1643583827653,0.2,93.429,93.287,2.47707845]
[1643583827654,2.95669142,93.428,93.287,2.47707845]
[1643583827854,0.2,93.429,93.278,18.4234797]
[1643583828053,0.2,93.429,93.29,6.0]
[1643583828658,0.2,93.429,93.289,6.0]
[1643583829260,10.69,93.43,93.29,2.72707845]
[1643583829460,10.69,93.43,93.306,0.3000985]
[1643583829660,4.47711084,93.508,93.306,0.3000985]
[1643583829661,1.58792244,93.486,93.331,0.30250037]
[1643583829859,15.49,93.48,93.332,107.7]
[1643583830062,15.49,93.48,93.342,6.0]
[1643583830260,15.49,93.48,93.343,0.25]
[1643583830661,15.49,93.48,93.343,20.04598189]
[1643583830862,15.49,93.48,93.344,13.79598189]
[1643583831063,15.49,93.48,93.354,6.0]
[1643583831263,15.49,93.48,93.355,107.95]
[1643583831470,15.49,93.48,93.36,6.0]
[1643583831766,0.1,93.486,93.365,6.0]
[1643583832164,0.1,93.486,93.37,22.065]
[1643583832366,0.1,93.486,93.372,107.7]
[1643583832568,0.1,93.486,93.382,6.0]
[1643583832767,0.1,93.486,93.383,0.25]
[1643583832968,0.1,93.486,93.382,6.0]
[1643583833168,0.1,93.486,93.382,113.7]
[1643583833368,0.1,93.486,93.383,0.25]
[1643583833567,0.1,93.486,93.376,107.7]
[1643583833767,0.1,93.486,93.376,107.95]
[1643583834768,0.1,93.486,93.375,6.0]
[1643583834969,15.49,93.48,93.375,6.0]
[1643583835170,107.9,93.479,93.32,15.49]
[1643583835370,0.2,93.478,93.352,2.47431408]
[1643583835573,0.2,93.478,93.319,2.47431408]
[1643583835971,2.95669142,93.477,93.319,2.47431408]
[1643583836171,1.48792244,93.467,93.32,15.49]
[1643583836369,15.49,93.46,93.32,15.49]
[1643583836569,15.49,93.45,93.321,2.47431408]
[1643583836769,0.2,93.449,93.321,110.17431408]
[1643583836973,1.48792244,93.445,93.321,107.7]
[1643583837170,1.48792244,93.428,93.321,107.7]
[1643583837471,1.68792244,93.429,93.321,107.7]
[1643583837668,1.68792244,93.429,93.308,2.47431408]
[1643583837869,1.68792244,93.429,93.292,2.46904702]
[1643583838071,1.48792244,93.411,93.28,15.49]
[1643583838369,1.48792244,93.409,93.29,0.25]
[1643583838591,1.48792244,93.408,93.29,0.25]
[1643583838890,0.2,93.409,93.291,2.46904702]
[1643583839292,1.48792244,93.403,93.292,0.25]
[1643583839492,15.49,93.4,93.292,0.25]
[1643583839693,0.2,93.399,93.293,2.46904702]
[1643583839891,0.2,93.409,93.294,107.95]
[1643583840092,1.48792244,93.407,93.294,125.72340858]
[1643583840294,0.2,93.409,93.295,20.2424556]
[1643583840694,0.2,93.409,93.3,16.076]
[1643583840896,0.2,93.409,93.305,6.0]
[1643583841093,193.66,93.48,93.301,0.25]
[1643583841094,1.48792244,93.421,93.311,107.7]
[1643583841294,1.48792244,93.425,93.312,0.25]
[1643583841496,1.48792244,93.425,93.322,107.7]
[1643583841693,1.48792244,93.432,93.322,121.19]
[1643583841895,1.48792244,93.432,93.333,107.7]
[1643583842198,1.48792244,93.454,93.365,0.30121083]
[1643583842393,1.48792244,93.461,93.365,11.33121083]
[1643583842593,15.53247269,93.49,93.365,11.33121083]
[1643583842594,1.48792244,93.476,93.375,6.0]
[1643583842798,1.48792244,93.481,93.38,15.49]
[1643583842994,1.48792244,93.481,93.39,6.0]
[1643583843194,1.48792244,93.481,93.39,32.2]
[1643583843396,1.48792244,93.485,93.391,0.25]
[1643583843595,1.48792244,93.485,93.392,107.7]
[1643583843796,0.04247269,93.49,93.393,0.25]
[1643583843797,1.48792244,93.483,93.393,0.25]
[1643583844001,1.48792244,93.482,93.402,6.0]
[1643583844201,1.48792244,93.482,93.41,15.49]
[1643583844398,0.04247269,93.49,93.411,107.95]
[1643583844599,0.04247269,93.49,93.421,113.7]
[1643583844799,0.04247269,93.49,93.43,15.49]
[1643583844997,0.04247269,93.49,93.422,0.25]
[1643583845198,0.04247269,93.49,93.43,16.053]
[1643583845700,3.26214627,93.533,93.45,0.31253874]
[1643583845701,2.05856372,93.525,93.45,0.31253874]
[1643583845897,0.57064128,93.525,93.46,15.49]
[1643583846103,0.57064128,93.525,93.47,21.046]
[1643583846312,0.57064128,93.525,93.471,107.95]
[1643583846906,0.57064128,93.525,93.471,107.7]
[1643583847105,0.57064128,93.525,93.472,2.71870363]
[1643583847306,0.57064128,93.525,93.48,16.045]
[1643583847505,0.57064128,93.525,93.49,15.49]
[1643583847908,0.57064128,93.525,93.491,0.25]
[1643583848108,0.57064128,93.525,93.491,12.95]
[1643583848506,0.57064128,93.525,93.492,107.7]
[1643583848908,0.57064128,93.525,93.493,0.25]
[1643583849711,0.57064128,93.525,93.493,2.71870363]
[1643583850011,0.57064128,93.525,93.503,6.0]
[1643583850422,0.57064128,93.525,93.504,2.71870363]
[1643583850609,0.57064128,93.525,93.504,11.91870363]
[1643583850810,1.48792244,93.588,93.505,110.16870363]
[1643583851009,1.48792244,93.599,93.51,16.039]
[1643583851215,1.48792244,93.606,93.51,16.039]
[1643583851419,1.48792244,93.603,93.511,0.25]
[1643583851715,1.48792244,93.606,93.511,0.25]
[1643583851909,1.48792244,93.614,93.512,2.46870363]
[1643583852111,1.48792244,93.613,93.511,0.25]
[1643583852310,1.48792244,93.62,93.513,0.32075857]
[1643583852511,1.48792244,93.62,93.52,6.0]
[1643583852709,1.48792244,93.62,93.497,17.08176418]
[1643583852710,1.48792244,93.629,93.514,2.46344254]
[1643583852910,2.95669142,93.619,93.504,0.25]
[1643583853110,4.74461386,93.619,93.504,0.25]
[1643583853313,1.48792244,93.614,93.504,0.25]
[1643583853809,1.48792244,93.614,93.493,0.31187084]
[1643583853810,6.0,93.604,93.51,16.04]
[1643583854012,6.0,93.604,93.505,2.46344254]
[1643583854013,0.3,93.619,93.505,2.46344254]
[1643583854212,15.49,93.61,93.506,0.25]
[1643583854410,0.3,93.609,93.506,0.25]
[1643583855008,0.3,93.609,93.47,15.49]
[1643583855009,2.95669142,93.608,93.47,15.49]
[1643583855212,110.75669142,93.608,93.44,15.49]
[1643583855410,1.48792244,93.597,93.44,15.49]
[1643583855713,15.49,93.59,93.44,15.49]
[1643583856008,1.48792244,93.596,93.44,15.49]
[1643583856009,15.49,93.58,93.44,15.49]
[1643583856209,15.49,93.58,93.441,2.71344254]
[1643583856210,0.3,93.579,93.441,2.71344254]
[1643583856711,0.3,93.579,93.442,110.16344254]
[1643583857011,0.3,93.579,93.442,151.08832486]
[1643583857211,0.3,93.579,93.45,16.05]
[1643583857411,0.3,93.579,93.46,15.49]
[1643583857811,15.49,93.6,93.461,31.81864782]
[1643583858009,0.3,93.599,93.461,45.20209036]
[1643583858210,0.3,93.599,93.471,6.0]
[1643583858410,0.3,93.599,93.48,15.49]
[1643583858810,0.3,93.599,93.481,0.25]
[1643583859013,4.44461386,93.598,93.481,0.25]
[1643583859212,4.44461386,93.598,93.473,2.46344254]
[1643583859213,1.48792244,93.598,93.473,2.46344254]
[1643583859412,0.3,93.599,93.473,2.46344254]
[1643583859613,1.48792244,93.598,93.473,2.46344254]
[1643583859914,0.3,93.599,93.473,2.46344254]
[1643583859915,1.48792244,93.596,93.473,2.46344254]
[1643583860915,1.48792244,93.594,93.473,2.46344254]
[1643583861129,0.3,93.599,93.483,6.0]
[1643583861414,0.2,93.638,93.483,6.0]
[1643583861415,0.3,93.609,93.49,15.49]
[1643583861613,0.3,93.619,93.491,107.7]
[1643583861814,0.3,93.619,93.491,110.4043231]
[1643583862018,1.48792244,93.618,93.491,110.4043231]
[1643583862216,1.78792244,93.619,93.492,2.4543231]
[1643583862417,1.48792244,93.616,93.493,0.25]
[1643583862617,12.84,93.62,93.493,0.25]
[1643583862820,0.3,93.619,93.494,110.1543231]
[1643583863015,1.48792244,93.627,93.504,6.0]
[1643583863215,0.5,93.639,93.504,6.0]
[1643583863216,1.48792244,93.634,93.504,6.0]
[1643583863415,1.48792244,93.634,93.505,110.4043231]
[1643583863616,1.48792244,93.635,93.516,107.7]
[1643583863815,1.48792244,93.634,93.517,0.25]
[1643583864020,1.48792244,93.634,93.52,16.038]
[1643583864218,1.48792244,93.632,93.52,16.038]
[1643583864518,1.48792244,93.632,93.521,107.95]
[1643583864745,0.5,93.639,93.521,110.14909169]
[1643583864746,1.48792244,93.633,93.521,110.14909169]
[1643583864918,1.48792244,93.636,93.522,2.44909169]
[1643583865123,1.98792244,93.639,93.522,2.44909169]
[1643583865320,1.98792244,93.639,93.53,16.036]
[1643583865519,1.98792244,93.639,93.522,2.44909169]
[1643583865719,1.48792244,93.636,93.522,2.44909169]
[1643583866024,109.68792244,93.639,93.522,2.44909169]
[1643583866320,1.48792244,93.621,93.499,2.44909169]
[1643583866520,12.84,93.61,93.48,16.045]
[1643583866819,0.3,93.609,93.481,107.7]
[1643583867022,0.3,93.609,93.481,126.74259903]
[1643583867220,0.3,93.609,93.482,19.04259903]
[1643583867421,0.3,93.609,93.482,19.29259903]
[1643583867625,0.3,93.609,93.483,19.04259903]
[1643583867827,0.3,93.609,93.484,0.25]
[1643583868023,0.3,93.609,93.491,107.7]
[1643583868226,1.48792244,93.607,93.491,107.7]
[1643583868424,1.48792244,93.614,93.492,16.84350734]
[1643583868626,1.48792244,93.616,93.493,107.7]
[1643583868826,1.48792244,93.613,93.494,0.25]
[1643583869026,1.48792244,93.613,93.494,19.29259903]
[1643583869227,1.48792244,93.613,93.495,107.7]
[1643583869423,1.48792244,93.614,93.496,0.25]
[1643583869624,1.48792244,93.614,93.51,12.84]
[1643583869823,0.3,93.629,93.511,107.95]
[1643583869824,1.48792244,93.621,93.511,107.95]
[1643583870023,1.48792244,93.609,93.511,107.95]
[1643583870230,1.48792244,93.609,93.523,0.30808971]
[1643583870427,1.48792244,93.615,93.523,0.30808971]
[1643583870626,1.48792244,93.614,93.523,0.30808971]
[1643583870826,1.48792244,93.615,93.524,2.44386876]
[1643583871024,1.48792244,93.615,93.57,0.32057776]
[1643583871228,0.1,93.639,93.57,0.32057776]
[1643583871426,1.48792244,93.639,93.571,2.44386876]
[1643583871627,1.48792244,93.639,93.57,0.32057776]
[1643583871825,1.48792244,93.64,93.57,0.32057776]
[1643583872024,1.48792244,93.639,93.57,0.32057776]
[1643583872259,2.949423,93.659,93.554,2.44386876]
[1643583872260,1.48792244,93.636,93.555,0.25]
[1643583872627,1.48792244,93.632,93.556,2.44386876]
[1643583872827,1.48792244,93.628,93.557,0.25]
[1643583873127,1.48792244,93.628,93.557,107.95]
[1643583873326,1.48792244,93.63,93.558,10.27055308]
[1643583873531,1.48792244,93.658,93.57,12.84]
[1643583873825,1.48792244,93.657,93.571,0.25]
[1643583874028,1.48792244,93.649,93.571,0.25]
[1643583874425,0.5,93.699,93.572,2.43933983]
[1643583874426,1.48792244,93.645,93.572,2.43933983]
[1643583874825,1.57748638,93.647,93.573,0.25]
[1643583875025,0.08956394,93.647,93.583,107.7]
[1643583875525,0.08956394,93.647,93.583,110.13933983]
[1643583875925,0.08956394,93.647,93.584,0.25]
[1643583879326,0.08956394,93.647,93.585,2.43933983]
[1643583879751,0.08956394,93.647,93.586,0.25]
[1643583880129,0.08956394,93.647,93.587,2.43933983]
[1643583880329,0.08956394,93.647,93.588,0.25]
[1643583880731,0.08956394,93.647,93.589,2.43933983]
[1643583880929,0.08956394,93.647,93.591,107.7]
[1643583881329,0.08956394,93.647,93.591,2.43933983]
[1643583881730,0.08956394,93.647,93.563,107.7]
[1643583881930,0.08956394,93.647,93.57,2.43933983]
[1643583882328,0.08956394,93.647,93.571,0.25]
[1643583882535,0.08956394,93.647,93.563,107.7]
[1643583882938,1.48792244,93.646,93.563,107.7]
[1643583883538,1.48792244,93.645,93.563,107.7]
[1643583883738,0.08956394,93.647,93.563,107.7]
[1643583883937,0.08956394,93.647,93.564,0.25]
[1643583884140,0.08956394,93.647,93.564,12.1141375]
[1643583884539,0.08956394,93.647,93.565,2.4341375]
[1643583884738,0.08956394,93.647,93.563,107.7]
[1643583884938,0.08956394,93.647,93.545,2.4341375]
[1643583885139,1.48792244,93.642,93.545,2.4341375]
[1643583885739,1.48792244,93.64,93.545,2.4341375]
[1643583885941,1.48792244,93.636,93.545,2.4341375]
[1643583886143,1.48792244,93.636,93.546,0.25]
[1643583886340,1.48792244,93.636,93.545,2.4341375]
[1643583886740,1.48792244,93.635,93.545,2.4341375]
[1643583886939,1.48792244,93.634,93.545,2.4341375]
[1643583887755,1.48792244,93.632,93.545,2.4341375]
[1643583887955,1.48792244,93.631,93.546,0.25]
[1643583888355,1.48792244,93.637,93.547,2.4341375]
[1643583888558,1.48792244,93.642,93.547,2.4341375]
[1643583888755,1.48792244,93.64,93.548,0.25]
[1643583888954,1.48792244,93.642,93.548,0.25]
[1643583889155,1.48792244,93.641,93.55,28.875]
[1643583889357,1.48792244,93.641,93.551,6.25]
[1643583889555,0.08956394,93.647,93.56,6.0]
[1643583889755,0.08956394,93.647,93.57,12.84]
[1643583890356,0.08956394,93.647,93.571,2.6841375]
[1643583890855,0.08956394,93.647,93.572,2.4341375]
[1643583891156,0.08956394,93.647,93.58,16.026]
[1643583891356,0.08956394,93.647,93.59,12.84]
[1643583891757,0.08956394,93.647,93.591,0.25]
[1643583891959,0.08956394,93.647,93.591,2.6841375]
[1643583892156,0.08956394,93.647,93.6,16.026]
[1643583892757,0.08956394,93.647,93.601,107.7]
[1643583893559,0.08956394,93.647,93.61,16.024]
[1643583893761,0.08956394,93.647,93.611,0.25]
[1643583894158,0.08956394,93.647,93.612,2.4341375]
[1643583894360,0.08956394,93.647,93.613,0.25]
[1643583894561,0.08956394,93.647,93.622,6.0]
[1643583894964,0.08956394,93.647,93.623,2.6841375]
[1643583895163,0.08956394,93.647,93.623,110.3841375]
[1643583895366,0.08956394,93.647,93.624,2.4341375]
[1643583895763,0.08956394,93.647,93.625,0.25]
[1643583896766,0.08956394,93.647,93.624,0.25]
[1643583898372,0.08956394,93.647,93.608,2.4341375]
[1643583898671,0.08956394,93.647,93.563,107.7]
[1643583899273,0.08956394,93.647,93.57,16.031]
[1643583899873,0.08956394,93.647,93.571,0.25]
[1643583900074,0.08956394,93.647,93.571,107.95]
[1643583900274,0.08956394,93.647,93.572,0.25]
[1643583901484,0.08956394,93.647,93.571,107.7]
[1643583902079,1.48792244,93.644,93.571,107.7]
[1643583902481,1.48792244,93.639,93.571,107.7]
[1643583902691,1.48792244,93.638,93.571,107.7]
[1643583902882,1.48792244,93.64,93.545,14.88505229]
[1643583903082,1.48792244,93.635,93.546,107.7]
[1643583903283,1.48792244,93.637,93.546,107.7]
[1643583903483,1.48792244,93.638,93.547,2.42894437]
[1643583903682,1.48792244,93.639,93.547,2.42894437]
[1643583903881,1.48792244,93.638,93.547,2.42894437]
[1643583904085,0.08956394,93.647,93.561,107.7]
[1643583904086,1.48792244,93.645,93.561,107.7]
[1643583904283,0.08956394,93.647,93.561,107.7]
[1643583905084,0.08956394,93.647,93.57,16.031]
[1643583905286,1.48792244,93.639,93.561,107.7]
[1643583905485,1.48792244,93.633,93.561,107.7]
[1643583905686,1.48792244,93.64,93.561,107.7]
[1643583906006,1.48792244,93.646,93.562,2.42894437]
[1643583906207,1.48792244,93.646,93.57,16.031]
[1643583906407,1.48792244,93.646,93.571,0.25]
[1643583906610,1.57748638,93.647,93.571,0.25]
[1643583906809,1.57748638,93.647,93.57,16.031]
[1643583907009,1.48792244,93.636,93.547,2.42894437]
[1643583907210,1.48792244,93.624,93.52,28.879]
[1643583907409,1.48792244,93.624,93.531,0.25]
[1643583907614,1.48792244,93.626,93.531,0.25]
[1643583907810,1.48792244,93.629,93.531,0.25]
[1643583908011,1.48792244,93.63,93.531,0.25]
[1643583908212,1.48792244,93.626,93.531,0.25]
[1643583908411,1.48792244,93.626,93.54,16.037]
[1643583908611,1.48792244,93.64,93.55,6.0]
[1643583908811,1.48792244,93.64,93.551,107.95]
[1643583909011,1.48792244,93.646,93.551,116.37894437]
[1643583909215,1.57748638,93.647,93.561,107.7]
[1643583909411,1.57748638,93.647,93.562,0.25]
[1643583909612,1.57748638,93.647,93.562,2.67894437]
[1643583910011,0.08956394,93.647,93.563,2.42894437]
[1643583910214,0.08956394,93.647,93.57,28.87]
[1643583910412,0.08956394,93.647,93.571,107.95]
[1643583912014,0.08956394,93.647,93.58,16.03]
[1643583912215,0.08956394,93.647,93.581,107.7]
[1643583912414,0.08956394,93.647,93.581,107.95]
[1643583915421,0.08956394,93.647,93.572,2.42894437]
[1643583915622,0.08956394,93.647,93.54,68.07195179]
[1643583915623,1.48792244,93.645,93.55,12.84]
[1643583915821,0.08956394,93.647,93.505,1.46230861]
[1643583915822,1.48792244,93.629,93.505,1.46230861]
[1643583916026,1.48792244,93.631,93.54,12.84]
[1643583916221,0.08956394,93.647,93.54,12.84]
[1643583916222,1.48792244,93.634,93.551,6.0]
[1643583916422,1.48792244,93.634,93.541,17.30881707]
[1643583916623,1.48792244,93.64,93.541,14.88505229]
[1643583916823,1.48792244,93.64,93.542,122.58505229]
[1643583917024,1.48792244,93.633,93.542,122.58505229]
[1643583917223,0.08956394,93.647,93.542,122.58505229]
[1643583917224,1.48792244,93.629,93.542,122.58505229]
[1643583917425,1.48792244,93.625,93.542,107.7]
[1643583917623,12.03,93.633,93.52,27.72505229]
[1643583917624,1.48792244,93.622,93.52,27.72505229]
[1643583917825,1.48792244,93.603,93.52,14.88505229]
[1643583918024,1.48792244,93.603,93.505,2.42376478]
[1643583918229,1.48792244,93.602,93.521,2.42376478]
[1643583918427,1.48792244,93.598,93.521,2.42376478]
[1643583918626,1.48792244,93.598,93.504,2.42376478]
[1643583918825,1.48792244,93.601,93.504,2.42376478]
[1643583919025,1.48792244,93.6,93.504,2.42376478]
[1643583919226,2.97792125,93.626,93.504,2.42376478]
[1643583919227,1.48792244,93.599,93.504,110.12376478]
[1643583919427,1.48792244,93.596,93.504,110.12376478]
[1643583919629,1.48792244,93.599,93.505,2.42376478]
[1643583919828,1.48792244,93.601,93.505,2.42376478]
[1643583920027,1.48792244,93.602,93.505,2.42376478]
[1643583920228,1.48792244,93.597,93.504,107.7]
[1643583920430,1.48792244,93.597,93.505,0.25]
[1643583920631,1.48792244,93.598,93.501,0.25]
[1643583920830,1.48792244,93.595,93.501,0.25]
[1643583921028,1.48792244,93.599,93.501,0.25]
[1643583921630,1.48792244,93.598,93.501,0.25]
[1643583921829,1.48792244,93.595,93.5,10.0]
[1643583922234,1.48792244,93.595,93.501,2.42376478]
[1643583922532,0.3,93.599,93.501,28.57881707]
[1643583922729,1.48792244,93.608,93.501,28.57881707]
[1643583922730,1.48792244,93.608,93.51,16.042]
[1643583922932,1.48792244,93.612,93.51,16.042]
[1643583923132,1.48792244,93.616,93.511,17.30881707]
[1643583923332,1.48792244,93.617,93.512,107.7]
[1643583923529,1.48792244,93.617,93.522,113.7]
[1643583923731,1.48792244,93.633,93.53,12.84]
[1643583923930,1.48792244,93.638,93.54,16.037]
[1643583924130,1.48792244,93.638,93.54,34.877]
[1643583924431,1.48792244,93.641,93.541,2.67376478]
[1643583924630,1.48792244,93.641,93.541,14.55376478]
[1643583924932,1.48792244,93.641,93.56,16.033]
[1643583925131,1.48792244,93.642,93.561,107.7]
[1643583925330,1.48792244,93.642,93.561,110.37376478]
[1643583925533,1.48792244,93.642,93.562,2.42376478]
[1643583925931,1.48792244,93.646,93.563,0.25]
[1643583926232,1.48792244,93.649,93.563,0.25]
[1643583926631,1.48792244,93.651,93.563,0.25]
[1643583926831,1.48792244,93.651,93.571,107.7]
[1643583927032,1.48792244,93.649,93.571,107.7]
[1643583927230,1.48792244,93.649,93.572,0.25]
[1643583927532,1.57748638,93.647,93.572,0.25]
[1643583927733,1.48792244,93.645,93.572,0.25]
[1643583927931,1.48792244,93.644,93.572,0.25]
[1643583928931,0.08956394,93.647,93.58,16.03]
[1643583929134,0.08956394,93.647,93.58,25.76]
[1643583929331,0.08956394,93.647,93.581,0.25]
[1643583929532,0.08956394,93.647,93.581,107.95]
[1643583929732,0.08956394,93.647,93.581,0.25]
[1643583930433,0.08956394,93.647,93.581,107.95]
[1643583931834,0.08956394,93.647,93.581,0.25]
[1643583932256,0.08956394,93.647,93.571,0.25]
[1643583932733,0.08956394,93.647,93.58,16.03]
[1643583933135,0.08956394,93.647,93.581,0.25]
[1643583933535,0.08956394,93.647,93.572,2.42280091]
[1643583933734,0.08956394,93.647,93.56,53.43]
[1643583934139,0.08956394,93.647,93.561,107.7]
[1643583934337,1.48792244,93.645,93.561,107.7]